[Event "*** Titled Tuesday Blitz"]
[Site "Chess.com"]
[Date "2020.10.27"]
[Round "6"]
[White "PSvidler"]
[Black "Mazetovic"]
[Result "1/2-1/2"]
[WhiteElo "2913"]
[BlackElo "2762"]
[TimeControl "180+1"]
[EndTime "11:06:32 PDT"]
[Termination "Game drawn - insufficient material"]

1. c4 {[%clk 0:03:00.9]} 1... Nf6 {[%clk 0:02:58.3]} 2. Nc3 {[%clk 0:02:59.3]}
2... g6 {[%clk 0:02:58.3]} 3. g3 {[%clk 0:02:59.7]} 3... Bg7 {[%clk 0:02:58]} 4.
Bg2 {[%clk 0:03:00.3]} 4... O-O {[%clk 0:02:57.7]} 5. Nf3 {[%clk 0:02:59.6]}
5... d6 {[%clk 0:02:57.9]} 6. d4 {[%clk 0:02:59.3]} 6... c6 {[%clk 0:02:58.3]}
7. O-O {[%clk 0:02:59.2]} 7... Qa5 {[%clk 0:02:59]} 8. h3 {[%clk 0:02:51.8]}
8... Qa6 {[%clk 0:02:57.2]} 9. b3 {[%clk 0:02:50.8]} 9... b5 {[%clk 0:02:57.4]}
10. Nd2 {[%clk 0:02:40.9]} 10... Bb7 {[%clk 0:02:51.2]} 11. e3 {[%clk
0:02:39.4]} 11... Nbd7 {[%clk 0:02:47.4]} 12. Qe2 {[%clk 0:02:38.8]} 12... bxc4
{[%clk 0:02:42.6]} 13. Qxc4 {[%clk 0:02:38.5]} 13... Rfc8 {[%clk 0:02:13.2]} 14.
Bb2 {[%clk 0:02:33.8]} 14... Nb6 {[%clk 0:02:12.7]} 15. Qxa6 {[%clk 0:02:32.8]}
15... Bxa6 {[%clk 0:02:13]} 16. Rfc1 {[%clk 0:02:33.4]} 16... Rab8 {[%clk
0:02:11.5]} 17. Nce4 {[%clk 0:02:25.9]} 17... Nxe4 {[%clk 0:02:10.3]} 18. Nxe4
{[%clk 0:02:25.9]} 18... c5 {[%clk 0:02:08.2]} 19. Nd2 {[%clk 0:02:00.7]} 19...
Bb7 {[%clk 0:01:45.9]} 20. Bxb7 {[%clk 0:01:58.5]} 20... Rxb7 {[%clk 0:01:46.1]}
21. Rc2 {[%clk 0:01:52.3]} 21... cxd4 {[%clk 0:01:15]} 22. Rxc8+ {[%clk
0:01:53.2]} 22... Nxc8 {[%clk 0:01:15.1]} 23. Rc1 {[%clk 0:01:53.8]} 23... Nb6
{[%clk 0:01:13.2]} 24. Bxd4 {[%clk 0:01:53.7]} 24... Bxd4 {[%clk 0:01:12.5]} 25.
exd4 {[%clk 0:01:54.6]} 25... Kf8 {[%clk 0:01:12.2]} 26. Kf1 {[%clk 0:01:52.4]}
26... Ke8 {[%clk 0:01:12.1]} 27. Ke2 {[%clk 0:01:52.6]} 27... Kd7 {[%clk
0:01:12.3]} 28. Kd3 {[%clk 0:01:52.4]} 28... Nd5 {[%clk 0:01:12.6]} 29. a3
{[%clk 0:01:52.4]} 29... f5 {[%clk 0:01:09.4]} 30. b4 {[%clk 0:01:52]} 30... e6
{[%clk 0:01:03.9]} 31. Nb3 {[%clk 0:01:51.5]} 31... g5 {[%clk 0:00:59.3]} 32.
Na5 {[%clk 0:01:50.4]} 32... Rc7 {[%clk 0:00:59.5]} 33. Rxc7+ {[%clk 0:01:50]}
33... Kxc7 {[%clk 0:00:59.5]} 34. Nc4 {[%clk 0:01:48.6]} 34... h5 {[%clk
0:00:57.9]} 35. b5 {[%clk 0:01:45.6]} 35... h4 {[%clk 0:00:38.2]} 36. Ne3 {[%clk
0:01:38.2]} 36... Nf6 {[%clk 0:00:31.2]} 37. gxh4 {[%clk 0:01:36.3]} 37... gxh4
{[%clk 0:00:29.3]} 38. Ng2 {[%clk 0:01:36.9]} 38... Kb6 {[%clk 0:00:26.6]} 39.
Nxh4 {[%clk 0:01:35.3]} 39... Kxb5 {[%clk 0:00:27]} 40. Ng6 {[%clk 0:01:33.7]}
40... Ka4 {[%clk 0:00:22.2]} 41. Nf4 {[%clk 0:01:33.3]} 41... e5 {[%clk
0:00:20]} 42. dxe5 {[%clk 0:01:33.4]} 42... dxe5 {[%clk 0:00:20.3]} 43. Ng6
{[%clk 0:01:34]} 43... e4+ {[%clk 0:00:20.3]} 44. Kd4 {[%clk 0:01:34.4]} 44...
Kxa3 {[%clk 0:00:20.7]} 45. Ke5 {[%clk 0:01:34.7]} 45... Nh5 {[%clk 0:00:16.6]}
46. Kxf5 {[%clk 0:01:33.7]} 46... Kb2 {[%clk 0:00:15.1]} 47. Ne5 {[%clk
0:01:33.3]} 47... Kc3 {[%clk 0:00:14.8]} 48. Kxe4 {[%clk 0:01:33.3]} 48... a5
{[%clk 0:00:14.6]} 49. Kd5 {[%clk 0:01:21.3]} 49... a4 {[%clk 0:00:14.4]} 50.
Nc4 {[%clk 0:01:21.4]} 50... Nf4+ {[%clk 0:00:14.2]} 51. Kc5 {[%clk 0:01:21.5]}
51... Nxh3 {[%clk 0:00:13.4]} 52. Kb5 {[%clk 0:01:21.8]} 52... Kb3 {[%clk
0:00:08.7]} 53. Na5+ {[%clk 0:01:21.7]} 53... Kc3 {[%clk 0:00:08]} 54. Kxa4
{[%clk 0:01:21.7]} 54... Nxf2 {[%clk 0:00:07.8]} 1/2-1/2

[Event "*** Titled Tuesday Blitz"]
[Site "Chess.com"]
[Date "2020.10.27"]
[Round "6"]
[White "mjray79"]
[Black "TioCridineno"]
[Result "1-0"]
[WhiteElo "2451"]
[BlackElo "2230"]
[TimeControl "180+1"]
[EndTime "11:06:34 PDT"]
[Termination "mjray79 won by checkmate"]

1. d4 {[%clk 0:03:00.9]} 1... Nf6 {[%clk 0:02:56.1]} 2. c4 {[%clk 0:03:01.1]}
2... g6 {[%clk 0:02:56.4]} 3. Nc3 {[%clk 0:02:58.7]} 3... Bg7 {[%clk 0:02:56.9]}
4. e4 {[%clk 0:02:57.9]} 4... d6 {[%clk 0:02:57.2]} 5. Nge2 {[%clk 0:02:58]}
5... c5 {[%clk 0:02:55.9]} 6. d5 {[%clk 0:02:57.3]} 6... O-O {[%clk 0:02:56]} 7.
Ng3 {[%clk 0:02:56.8]} 7... e6 {[%clk 0:02:56.2]} 8. Be2 {[%clk 0:02:55.6]} 8...
exd5 {[%clk 0:02:56.2]} 9. cxd5 {[%clk 0:02:55.6]} 9... a6 {[%clk 0:02:55.7]}
10. a4 {[%clk 0:02:54.8]} 10... Nbd7 {[%clk 0:02:54.9]} 11. O-O {[%clk
0:02:50.9]} 11... Rb8 {[%clk 0:02:50.7]} 12. f4 {[%clk 0:02:49.2]} 12... Re8
{[%clk 0:02:40.4]} 13. Re1 {[%clk 0:02:47.4]} 13... b5 {[%clk 0:02:38.5]} 14.
axb5 {[%clk 0:02:46.3]} 14... axb5 {[%clk 0:02:38.3]} 15. Bxb5 {[%clk
0:02:45.4]} 15... Qb6 {[%clk 0:02:36.4]} 16. e5 {[%clk 0:02:37.6]} 16... dxe5
{[%clk 0:02:22.9]} 17. fxe5 {[%clk 0:02:37.2]} 17... Rxe5 {[%clk 0:02:21]} 18.
Bf4 {[%clk 0:02:26.7]} 18... Nxd5 {[%clk 0:01:26.5]} 19. Bxe5 {[%clk 0:01:40.1]}
19... Nxc3 {[%clk 0:01:21.3]} 20. Bxc3 {[%clk 0:01:36.6]} 20... c4+ {[%clk
0:00:56.9]} 21. Kh1 {[%clk 0:01:32.2]} 21... Qxb5 {[%clk 0:00:56.8]} 22. Re8+
{[%clk 0:01:03.4]} 22... Nf8 {[%clk 0:00:55.8]} 23. Qd8 {[%clk 0:01:01.7]} 23...
Qc5 {[%clk 0:00:38.6]} 24. Ne4 {[%clk 0:00:37.1]} 24... Qb6 {[%clk 0:00:19.9]}
25. Qxb6 {[%clk 0:00:27.7]} 25... Rxb6 {[%clk 0:00:20.1]} 26. Rxc8 {[%clk
0:00:26.6]} 26... Bxc3 {[%clk 0:00:20.1]} 27. bxc3 {[%clk 0:00:27.4]} 27... Kg7
{[%clk 0:00:20.6]} 28. h3 {[%clk 0:00:27.2]} 28... Ne6 {[%clk 0:00:20.1]} 29.
Ra7 {[%clk 0:00:25.6]} 29... Nf4 {[%clk 0:00:15.5]} 30. Rcc7 {[%clk 0:00:23.9]}
30... Rb1+ {[%clk 0:00:14.7]} 31. Kh2 {[%clk 0:00:23.5]} 31... Ne2 {[%clk
0:00:14.5]} 32. Rxf7+ {[%clk 0:00:22.8]} 32... Kh6 {[%clk 0:00:14.9]} 33. Rxh7#
{[%clk 0:00:22.8]} 1-0

[Event "*** Titled Tuesday Blitz"]
[Site "Chess.com"]
[Date "2020.10.27"]
[Round "6"]
[White "Kaslask"]
[Black "TheMagnet"]
[Result "0-1"]
[WhiteElo "2350"]
[BlackElo "2569"]
[TimeControl "180+1"]
[EndTime "11:06:40 PDT"]
[Termination "TheMagnet won on time"]

1. d4 {[%clk 0:03:00.9]} 1... Nf6 {[%clk 0:03:00.2]} 2. c4 {[%clk 0:03:00.7]}
2... g6 {[%clk 0:03:00.6]} 3. Nc3 {[%clk 0:03:00.6]} 3... Bg7 {[%clk 0:03:01.2]}
4. e4 {[%clk 0:03:00.6]} 4... d6 {[%clk 0:03:01.7]} 5. Be2 {[%clk 0:03:00.7]}
5... O-O {[%clk 0:03:02.1]} 6. Be3 {[%clk 0:03:00.7]} 6... c5 {[%clk 0:03:02.2]}
7. Nf3 {[%clk 0:02:57.1]} 7... cxd4 {[%clk 0:02:59]} 8. Nxd4 {[%clk 0:02:56.1]}
8... Nc6 {[%clk 0:02:59.5]} 9. f3 {[%clk 0:02:55.9]} 9... Bd7 {[%clk 0:02:59.6]}
10. O-O {[%clk 0:02:55.2]} 10... Nxd4 {[%clk 0:02:58.3]} 11. Bxd4 {[%clk
0:02:55]} 11... a5 {[%clk 0:02:59]} 12. Qd2 {[%clk 0:02:54.5]} 12... Bc6 {[%clk
0:02:59.3]} 13. Rfd1 {[%clk 0:02:50.2]} 13... Nd7 {[%clk 0:02:58.7]} 14. Be3
{[%clk 0:02:48.9]} 14... Nc5 {[%clk 0:02:57.4]} 15. b3 {[%clk 0:02:44.7]} 15...
Qb6 {[%clk 0:02:56.9]} 16. Rab1 {[%clk 0:02:43.9]} 16... Rfc8 {[%clk 0:02:54.9]}
17. Nd5 {[%clk 0:02:41.2]} 17... Bxd5 {[%clk 0:02:54.6]} 18. cxd5 {[%clk
0:02:39.6]} 18... Qb4 {[%clk 0:02:51.9]} 19. Qxb4 {[%clk 0:02:05.4]} 19... axb4
{[%clk 0:02:52.8]} 20. Rd2 {[%clk 0:01:59.1]} 20... Ra3 {[%clk 0:02:44.5]} 21.
Rc2 {[%clk 0:01:54.8]} 21... Rca8 {[%clk 0:02:42.8]} 22. Bf1 {[%clk 0:01:31.1]}
22... Rxa2 {[%clk 0:02:41.8]} 23. Rc4 {[%clk 0:01:29.4]} 23... Bc3 {[%clk
0:02:17.9]} 24. Bd4 {[%clk 0:01:29.3]} 24... Rc2 {[%clk 0:02:04.8]} 25. Bxc3
{[%clk 0:01:12.1]} 25... bxc3 {[%clk 0:02:03]} 26. b4 {[%clk 0:01:08.3]} 26...
Nd7 {[%clk 0:01:55.2]} 27. Rb3 {[%clk 0:01:06.6]} 27... Ne5 {[%clk 0:01:41.5]}
28. Rcxc3 {[%clk 0:01:06.3]} 28... Rd2 {[%clk 0:01:39]} 29. f4 {[%clk
0:01:01.4]} 29... Ng4 {[%clk 0:01:35.8]} 30. h3 {[%clk 0:01:01.1]} 30... Nf6
{[%clk 0:01:31.7]} 31. Re3 {[%clk 0:00:56.7]} 31... Ra1 {[%clk 0:01:29.6]} 32.
Rbd3 {[%clk 0:00:48.9]} 32... Rb2 {[%clk 0:01:29.7]} 33. e5 {[%clk 0:00:47.6]}
33... Nh5 {[%clk 0:01:21.7]} 34. Rf3 {[%clk 0:00:39.2]} 34... Rxb4 {[%clk
0:01:19.5]} 35. exd6 {[%clk 0:00:35.5]} 35... exd6 {[%clk 0:01:19.6]} 36. f5
{[%clk 0:00:35.6]} 36... Nf4 {[%clk 0:01:15.4]} 37. Rb3 {[%clk 0:00:34.4]} 37...
Ne2+ {[%clk 0:01:08.9]} 38. Kf2 {[%clk 0:00:32.7]} 38... Rxb3 {[%clk 0:01:08.9]}
39. Rxb3 {[%clk 0:00:31.6]} 39... Nd4 {[%clk 0:01:08.3]} 40. Rxb7 {[%clk
0:00:30.7]} 40... Nxf5 {[%clk 0:01:07.9]} 41. g4 {[%clk 0:00:22.6]} 41... Ra2+
{[%clk 0:01:07.3]} 42. Kf3 {[%clk 0:00:19.9]} 42... Ra3+ {[%clk 0:01:07.6]} 43.
Kf4 {[%clk 0:00:19.6]} 43... Ne3 {[%clk 0:01:05.7]} 44. Bb5 {[%clk 0:00:18.2]}
44... Nxd5+ {[%clk 0:01:02.6]} 45. Ke4 {[%clk 0:00:16.3]} 45... Nc3+ {[%clk
0:01:02.3]} 46. Kd4 {[%clk 0:00:13.2]} 46... Nxb5+ {[%clk 0:01:02.6]} 47. Rxb5
{[%clk 0:00:12.3]} 47... Rxh3 {[%clk 0:01:02.7]} 48. g5 {[%clk 0:00:10.6]} 48...
Rg3 {[%clk 0:00:58.2]} 0-1

[Event "*** Titled Tuesday Blitz"]
[Site "Chess.com"]
[Date "2020.10.27"]
[Round "6"]
[White "GukeshDommaraju"]
[Black "xamax2000"]
[Result "1-0"]
[WhiteElo "2831"]
[BlackElo "2671"]
[TimeControl "180+1"]
[EndTime "11:06:45 PDT"]
[Termination "GukeshDommaraju won on time"]

1. c4 {[%clk 0:03:00.9]} 1... e6 {[%clk 0:02:58.8]} 2. Nf3 {[%clk 0:03:00.4]}
2... d5 {[%clk 0:02:59.7]} 3. e3 {[%clk 0:03:00.4]} 3... Nf6 {[%clk 0:03:00]} 4.
Nc3 {[%clk 0:03:00.7]} 4... c5 {[%clk 0:02:59.5]} 5. cxd5 {[%clk 0:03:00.5]}
5... exd5 {[%clk 0:03:00.4]} 6. d4 {[%clk 0:03:00.5]} 6... Nbd7 {[%clk
0:02:44.6]} 7. b3 {[%clk 0:02:50.7]} 7... cxd4 {[%clk 0:02:17.7]} 8. Nxd4 {[%clk
0:02:49.8]} 8... Bb4 {[%clk 0:02:16.3]} 9. Bd2 {[%clk 0:02:49.2]} 9... O-O
{[%clk 0:02:15.4]} 10. Be2 {[%clk 0:02:34]} 10... Re8 {[%clk 0:01:39.7]} 11. O-O
{[%clk 0:02:32]} 11... Ne5 {[%clk 0:01:38.7]} 12. Rc1 {[%clk 0:02:22.7]} 12...
Bd7 {[%clk 0:01:32.7]} 13. Ncb5 {[%clk 0:01:56.3]} 13... Bxd2 {[%clk 0:01:25.9]}
14. Qxd2 {[%clk 0:01:57.2]} 14... Re7 {[%clk 0:01:07.3]} 15. Qb4 {[%clk
0:01:48.1]} 15... a6 {[%clk 0:01:04]} 16. Nd6 {[%clk 0:01:14]} 16... Bc6 {[%clk
0:01:00.7]} 17. N6f5 {[%clk 0:01:04.2]} 17... Rd7 {[%clk 0:00:59.2]} 18. f4
{[%clk 0:00:57.5]} 18... Ng6 {[%clk 0:00:40.4]} 19. Nxc6 {[%clk 0:00:57]} 19...
bxc6 {[%clk 0:00:41]} 20. Rxc6 {[%clk 0:00:57.7]} 20... Ne7 {[%clk 0:00:35.2]}
21. Nxe7+ {[%clk 0:00:38.8]} 21... Rxe7 {[%clk 0:00:36.1]} 22. Qd4 {[%clk
0:00:21]} 22... Re4 {[%clk 0:00:35.4]} 23. Qd2 {[%clk 0:00:14]} 23... Qe8 {[%clk
0:00:34.7]} 24. Rfc1 {[%clk 0:00:14.1]} 24... Rxe3 {[%clk 0:00:34.7]} 25. Bxa6
{[%clk 0:00:14.2]} 1-0

[Event "*** Titled Tuesday Blitz"]
[Site "Chess.com"]
[Date "2020.10.27"]
[Round "6"]
[White "KarstenHansch"]
[Black "QuintilianoR"]
[Result "1-0"]
[WhiteElo "2485"]
[BlackElo "2649"]
[TimeControl "180+1"]
[EndTime "11:06:45 PDT"]
[Termination "KarstenHansch won by resignation"]

1. e4 {[%clk 0:03:00.9]} 1... c5 {[%clk 0:02:58.2]} 2. Nf3 {[%clk 0:03:00.7]}
2... d6 {[%clk 0:02:58.4]} 3. Bb5+ {[%clk 0:03:00.7]} 3... Nd7 {[%clk
0:02:57.7]} 4. c3 {[%clk 0:03:00.4]} 4... Nf6 {[%clk 0:02:56.3]} 5. Qe2 {[%clk
0:03:00.3]} 5... a6 {[%clk 0:02:56.3]} 6. Ba4 {[%clk 0:03:00.5]} 6... b5 {[%clk
0:02:56.7]} 7. Bc2 {[%clk 0:03:01]} 7... Bb7 {[%clk 0:02:57]} 8. O-O {[%clk
0:03:00.9]} 8... c4 {[%clk 0:02:56.9]} 9. a4 {[%clk 0:03:00]} 9... e6 {[%clk
0:02:52.8]} 10. Na3 {[%clk 0:02:59.5]} 10... d5 {[%clk 0:02:51.3]} 11. exd5
{[%clk 0:02:52.7]} 11... Bxd5 {[%clk 0:02:48]} 12. d3 {[%clk 0:02:50.4]} 12...
Qc8 {[%clk 0:02:06.4]} 13. dxc4 {[%clk 0:02:43.5]} 13... bxc4 {[%clk 0:02:04.9]}
14. Bg5 {[%clk 0:02:35.7]} 14... Rb8 {[%clk 0:01:56.6]} 15. Nd2 {[%clk
0:02:20.6]} 15... Qc6 {[%clk 0:01:30.4]} 16. Naxc4 {[%clk 0:02:05.1]} 16... Bxg2
{[%clk 0:01:27]} 17. Rfe1 {[%clk 0:02:03.3]} 17... Bd5 {[%clk 0:01:14.4]} 18.
Ne5 {[%clk 0:02:03.2]} 18... Nxe5 {[%clk 0:01:12.1]} 19. Qxe5 {[%clk 0:02:02.9]}
19... Bd6 {[%clk 0:01:11.7]} 20. Qd4 {[%clk 0:02:01.8]} 20... Rxb2 {[%clk
0:00:58.7]} 21. c4 {[%clk 0:01:50.9]} 21... Bh1 {[%clk 0:00:48.6]} 22. Be4
{[%clk 0:01:24.2]} 22... Nxe4 {[%clk 0:00:35]} 23. Nxe4 {[%clk 0:01:23]} 23...
Bxe4 {[%clk 0:00:29.4]} 24. Rxe4 {[%clk 0:01:16.2]} 24... O-O {[%clk 0:00:15.4]}
25. Rg4 {[%clk 0:00:58.7]} 25... Rxf2 {[%clk 0:00:12.6]} 26. Qxf2 {[%clk
0:00:48.2]} 26... Bc5 {[%clk 0:00:12.2]} 27. Be3 {[%clk 0:00:48.4]} 27... Bxe3
{[%clk 0:00:12.2]} 28. Qxe3 {[%clk 0:00:48.7]} 28... Rd8 {[%clk 0:00:12.8]} 29.
Rd4 {[%clk 0:00:46]} 29... Rc8 {[%clk 0:00:12.4]} 30. Rad1 {[%clk 0:00:45.4]}
30... Qc7 {[%clk 0:00:12.1]} 31. Rd7 {[%clk 0:00:44]} 31... Qa5 {[%clk
0:00:10.8]} 32. Qf4 {[%clk 0:00:29.3]} 32... f6 {[%clk 0:00:10.5]} 33. Qg4
{[%clk 0:00:26.1]} 33... Qc5+ {[%clk 0:00:10.4]} 34. R1d4 {[%clk 0:00:21.8]} 1-0

[Event "*** Titled Tuesday Blitz"]
[Site "Chess.com"]
[Date "2020.10.27"]
[Round "6"]
[White "pedro_nascimento85"]
[Black "kidagent"]
[Result "0-1"]
[WhiteElo "1993"]
[BlackElo "2292"]
[TimeControl "180+1"]
[EndTime "11:06:45 PDT"]
[Termination "kidagent won by resignation"]

1. d4 {[%clk 0:03:00.9]} 1... d5 {[%clk 0:02:59.6]} 2. c4 {[%clk 0:03:00.3]}
2... c6 {[%clk 0:02:59.7]} 3. cxd5 {[%clk 0:03:00.1]} 3... cxd5 {[%clk
0:02:59.6]} 4. Nc3 {[%clk 0:03:00.7]} 4... Nc6 {[%clk 0:02:57.6]} 5. e4 {[%clk
0:03:00.4]} 5... e5 {[%clk 0:02:50.1]} 6. exd5 {[%clk 0:02:55.2]} 6... Nxd4
{[%clk 0:02:49.4]} 7. Nf3 {[%clk 0:02:45.7]} 7... Bg4 {[%clk 0:02:43.8]} 8. Be2
{[%clk 0:02:42.3]} 8... Nxe2 {[%clk 0:02:33.7]} 9. Qxe2 {[%clk 0:02:40.1]} 9...
Bd6 {[%clk 0:02:32.9]} 10. h3 {[%clk 0:02:28.5]} 10... Bxf3 {[%clk 0:02:27.5]}
11. Qxf3 {[%clk 0:02:27.1]} 11... Ne7 {[%clk 0:02:23.8]} 12. O-O {[%clk
0:02:24.8]} 12... O-O {[%clk 0:02:23]} 13. Rd1 {[%clk 0:02:13.4]} 13... Rc8
{[%clk 0:02:17.1]} 14. Bg5 {[%clk 0:02:11.9]} 14... f6 {[%clk 0:02:16.3]} 15.
Be3 {[%clk 0:02:10.8]} 15... a6 {[%clk 0:02:13.6]} 16. Ne4 {[%clk 0:02:06.3]}
16... f5 {[%clk 0:01:52.4]} 17. Nc3 {[%clk 0:01:57.7]} 17... e4 {[%clk
0:01:49.7]} 18. Qe2 {[%clk 0:01:52.8]} 18... Qc7 {[%clk 0:01:41.4]} 19. Rac1
{[%clk 0:01:49.9]} 19... Qb8 {[%clk 0:01:40.2]} 20. Na4 {[%clk 0:01:37]} 20...
b5 {[%clk 0:01:37.5]} 21. Nb6 {[%clk 0:01:33.2]} 21... Rcd8 {[%clk 0:01:32.4]}
22. a4 {[%clk 0:01:30.1]} 22... bxa4 {[%clk 0:01:29.9]} 23. Nxa4 {[%clk
0:01:29.6]} 23... a5 {[%clk 0:01:23.8]} 24. Bc5 {[%clk 0:01:28.5]} 24... Ng6
{[%clk 0:01:15.3]} 25. Bxd6 {[%clk 0:01:25.1]} 25... Qxd6 {[%clk 0:01:14.1]} 26.
Nc5 {[%clk 0:01:25.6]} 26... Ne5 {[%clk 0:01:10.5]} 27. Ne6 {[%clk 0:01:24.5]}
27... Rc8 {[%clk 0:00:56.6]} 28. Nxf8 {[%clk 0:01:22.5]} 28... Rxf8 {[%clk
0:00:55.2]} 29. Qb5 {[%clk 0:01:04.2]} 29... f4 {[%clk 0:00:48.7]} 30. Qxa5
{[%clk 0:00:52.5]} 30... Qg6 {[%clk 0:00:41.5]} 31. Kh1 {[%clk 0:00:43.7]} 31...
f3 {[%clk 0:00:38.4]} 32. g3 {[%clk 0:00:41.7]} 32... e3 {[%clk 0:00:38.8]} 33.
Qe1 {[%clk 0:00:32.6]} 33... e2 {[%clk 0:00:34.6]} 34. Rd4 {[%clk 0:00:26.8]}
34... Nd3 {[%clk 0:00:34.2]} 35. Rxd3 {[%clk 0:00:20.4]} 35... Qxd3 {[%clk
0:00:34.4]} 36. Kg1 {[%clk 0:00:16.3]} 36... Qxd5 {[%clk 0:00:34.2]} 37. h4
{[%clk 0:00:11.3]} 37... Rd8 {[%clk 0:00:34.6]} 38. Ra1 {[%clk 0:00:09.8]} 38...
Qd1 {[%clk 0:00:33.3]} 39. Rxd1 {[%clk 0:00:08.9]} 39... Rxd1 {[%clk 0:00:32.9]}
0-1

[Event "*** Titled Tuesday Blitz"]
[Site "Chess.com"]
[Date "2020.10.27"]
[Round "6"]
[White "garicradomir"]
[Black "Kurai"]
[Result "1-0"]
[WhiteElo "2351"]
[BlackElo "2565"]
[TimeControl "180+1"]
[EndTime "11:06:46 PDT"]
[Termination "garicradomir won by resignation"]

1. e4 {[%clk 0:03:00.9]} 1... e5 {[%clk 0:02:59.3]} 2. Nf3 {[%clk 0:03:00.4]}
2... Nc6 {[%clk 0:02:59.8]} 3. Nc3 {[%clk 0:02:59.9]} 3... Nf6 {[%clk
0:02:57.3]} 4. Bb5 {[%clk 0:03:00]} 4... Bb4 {[%clk 0:02:56.6]} 5. d3 {[%clk
0:02:59.2]} 5... d6 {[%clk 0:02:54.6]} 6. O-O {[%clk 0:02:58.6]} 6... Bxc3
{[%clk 0:02:54]} 7. bxc3 {[%clk 0:02:58.6]} 7... O-O {[%clk 0:02:54.6]} 8. Bg5
{[%clk 0:02:58.2]} 8... Bd7 {[%clk 0:02:47.4]} 9. Rb1 {[%clk 0:02:54.7]} 9...
Rb8 {[%clk 0:02:41.3]} 10. Nh4 {[%clk 0:02:54.1]} 10... h6 {[%clk 0:02:38.5]}
11. Bxc6 {[%clk 0:02:52.5]} 11... hxg5 {[%clk 0:02:32]} 12. Bxd7 {[%clk
0:02:49.4]} 12... Qxd7 {[%clk 0:02:23.2]} 13. Nf5 {[%clk 0:02:48.8]} 13... g6
{[%clk 0:02:21.9]} 14. Ne3 {[%clk 0:02:47.9]} 14... Kg7 {[%clk 0:02:21.1]} 15.
Qf3 {[%clk 0:02:33.2]} 15... Qe6 {[%clk 0:02:14.9]} 16. c4 {[%clk 0:02:32.1]}
16... b6 {[%clk 0:02:14.2]} 17. h3 {[%clk 0:02:29.6]} 17... c6 {[%clk
0:02:09.2]} 18. a4 {[%clk 0:02:28.5]} 18... Rh8 {[%clk 0:02:07.2]} 19. Rb2
{[%clk 0:02:25.1]} 19... Rh4 {[%clk 0:02:00.4]} 20. a5 {[%clk 0:02:17.4]} 20...
Rbh8 {[%clk 0:01:51.5]} 21. axb6 {[%clk 0:02:14]} 21... axb6 {[%clk 0:01:51.6]}
22. Rxb6 {[%clk 0:01:56.1]} 22... g4 {[%clk 0:01:51.6]} 23. Qe2 {[%clk
0:01:55.5]} 23... gxh3 {[%clk 0:01:49.3]} 24. g3 {[%clk 0:01:55.7]} 24... h2+
{[%clk 0:01:47.7]} 25. Kh1 {[%clk 0:01:55.7]} 25... R4h5 {[%clk 0:01:13]} 26.
Rxc6 {[%clk 0:01:54.8]} 26... Ra8 {[%clk 0:01:07]} 27. c5 {[%clk 0:01:44.6]}
27... Ra2 {[%clk 0:00:40.8]} 28. Rxd6 {[%clk 0:01:43.3]} 28... Qc8 {[%clk
0:00:40.8]} 29. c6 {[%clk 0:01:31.6]} 29... Ra6 {[%clk 0:00:27.3]} 30. Nf5+
{[%clk 0:01:27.2]} 30... gxf5 {[%clk 0:00:17.1]} 31. Rxf6 {[%clk 0:01:27.3]}
31... Rg5 {[%clk 0:00:15.6]} 32. Rxf5 {[%clk 0:01:18.6]} 32... Rxf5 {[%clk
0:00:15.9]} 33. exf5 {[%clk 0:01:19.5]} 33... Qxc6+ {[%clk 0:00:16.4]} 34. Qe4
{[%clk 0:01:18.5]} 34... Qxe4+ {[%clk 0:00:09.7]} 35. dxe4 {[%clk 0:01:19.4]}
35... Rc6 {[%clk 0:00:10.3]} 36. Kxh2 {[%clk 0:01:18]} 36... Rxc2 {[%clk
0:00:10.3]} 37. Kh3 {[%clk 0:01:17.5]} 37... Kf6 {[%clk 0:00:10.7]} 38. Kg4
{[%clk 0:01:17.6]} 38... Re2 {[%clk 0:00:09.9]} 39. f3 {[%clk 0:01:16.7]} 39...
Rb2 {[%clk 0:00:08]} 40. Rc1 {[%clk 0:01:16.6]} 40... Rb6 {[%clk 0:00:08.5]} 41.
Rc7 {[%clk 0:01:16.1]} 41... Ra6 {[%clk 0:00:08.7]} 42. f4 {[%clk 0:01:13.9]}
42... Ra5 {[%clk 0:00:06.1]} 43. fxe5+ {[%clk 0:01:11.2]} 43... Rxe5 {[%clk
0:00:07]} 44. Kf4 {[%clk 0:01:11.6]} 44... Ra5 {[%clk 0:00:07.2]} 45. g4 {[%clk
0:01:11.8]} 45... Ra1 {[%clk 0:00:06.6]} 46. g5+ {[%clk 0:01:12]} 46... Kg7
{[%clk 0:00:07]} 47. g6 {[%clk 0:01:12.6]} 47... Rf1+ {[%clk 0:00:06.2]} 48. Ke5
{[%clk 0:01:12.9]} 48... Kg8 {[%clk 0:00:02.5]} 49. gxf7+ {[%clk 0:01:09]} 49...
Kf8 {[%clk 0:00:02.1]} 50. Kf6 {[%clk 0:01:08]} 50... Rxf5+ {[%clk 0:00:01.6]}
51. Kxf5 {[%clk 0:01:08.4]} 1-0